bitfinex/quotes_SOLUSD_20260211
["timestamp","ask_amount","ask_price","bid_price","bid_amount"]
[1770790076617,33.08,81.51,81.462,12.27566227]
[1770790076927,9.92721211,81.5,81.463,0.50000258]
[1770790077127,9.92721211,81.51,81.471,0.50000258]
[1770790077806,12.26707884,81.519,81.471,0.50000258]
[1770790077807,9.92721211,81.5,81.471,0.50000258]
[1770790078009,9.92721211,81.49,81.472,12.27415553]
[1770790078327,9.92721211,81.5,81.472,0.50000258]
[1770790078623,9.92721211,81.51,81.473,0.50000258]
[1770790078820,9.92721211,81.5,81.473,0.50000258]
[1770790079124,30.6630971,81.532,81.473,0.50000258]
[1770790079326,30.6630971,81.532,81.48,9.92721211]
[1770790079639,9.92721211,81.51,81.481,0.50000258]
[1770790080129,9.92721211,81.54,81.461,0.49621212]
[1770790080130,9.92721211,81.5,81.473,12.27394334]
[1770790080327,42.92845665,81.531,81.462,0.50000258]
[1770790080328,9.92721211,81.48,81.462,0.50000258]
[1770790080510,9.92721211,81.47,81.461,0.49621212]
[1770790080711,9.92721211,81.47,81.443,11.2784691]
[1770790080913,9.92721211,81.45,81.425,0.50000258]
[1770790081215,5.13032502,81.508,81.433,0.50000258]
[1770790081422,9.92721211,81.48,81.441,0.50000258]
[1770790081616,17.14,81.507,81.432,12.2800585]
[1770790081617,9.92721211,81.49,81.461,0.50000258]
[1770790081821,9.92721211,81.48,81.441,0.50000258]
[1770790082022,9.92721211,81.48,81.451,0.50000258]
[1770790082336,9.92721211,81.48,81.429,49.12238713]
[1770790082337,9.92721211,81.49,81.453,0.50000258]
[1770790082506,9.92721211,81.5,81.46,9.92721211]
[1770790082708,9.92721211,81.5,81.461,0.50000258]
[1770790082907,22.1957713,81.51,81.471,0.50000258]
[1770790083108,9.92721211,81.5,81.471,0.50000258]
[1770790083331,9.92721211,81.49,81.453,0.50000258]
[1770790083827,9.92721211,81.51,81.471,0.50000258]
[1770790084126,9.92721211,81.51,81.473,0.50000258]
[1770790084331,9.92721211,81.5,81.473,0.50000258]
[1770790084631,9.92721211,81.51,81.473,0.50000258]
[1770790085809,9.92721211,81.5,81.473,0.50000258]
[1770790086425,9.92721211,81.49,81.473,0.50000258]
[1770790086616,9.92721211,81.5,81.473,0.50000258]
[1770790086812,9.92721211,81.5,81.472,12.2741202]
[1770790087033,9.92721211,81.51,81.475,0.50000258]
[1770790088014,9.92721211,81.5,81.469,12.27455128]
[1770790088213,9.92721211,81.5,81.474,12.27385423]
[1770790088431,9.92721211,81.49,81.461,0.50000258]
[1770790088636,12.26722932,81.518,81.461,0.50000258]
[1770790088817,9.92721211,81.49,81.461,0.50000258]
[1770790089012,9.92721211,81.5,81.461,0.50000258]
[1770790090538,9.92721211,81.49,81.463,0.50000258]
[1770790090725,12.2700892,81.499,81.463,0.50000258]
[1770790091031,9.92721211,81.5,81.463,0.50000258]
[1770790091332,9.92721211,81.49,81.463,0.50000258]
[1770790091913,9.92721211,81.49,81.456,12.27644189]
[1770790092109,9.92721211,81.48,81.459,12.27599608]
[1770790092331,9.92721211,81.48,81.453,12.27701864]
[1770790092534,9.92721211,81.48,81.453,12.77702122]
[1770790092749,12.26783129,81.514,81.461,0.50000258]
[1770790092921,9.92721211,81.51,81.471,0.50000258]
[1770790093331,9.92721211,81.5,81.471,0.50000258]
[1770790093716,9.92721211,81.51,81.481,0.50000258]
[1770790094329,9.92721211,81.5,81.471,0.50000258]
[1770790094523,9.92721211,81.5,81.475,0.50000258]
[1770790094920,9.92721211,81.5,81.479,0.50000258]
[1770790095222,12.26858383,81.509,81.479,0.50000258]
[1770790096448,9.92721211,81.5,81.479,0.50000258]
[1770790096625,9.92721211,81.51,81.48,12.27295041]
[1770790096826,9.92721211,81.51,81.481,0.50000258]
[1770790097641,9.92721211,81.53,81.491,0.50000258]
[1770790098028,9.92721211,81.52,81.491,0.50000258]
[1770790098540,9.92721211,81.52,81.493,0.50000258]
[1770790099350,5.13032502,81.558,81.493,0.50000258]
[1770790099351,9.92721211,81.53,81.493,0.50000258]
[1770790099530,9.92721211,81.53,81.501,0.50000258]
[1770790099843,9.92721211,81.54,81.501,0.50000258]
[1770790100349,9.92721211,81.53,81.501,0.50000258]
[1770790100842,9.92721211,81.53,81.503,0.50000258]
[1770790101048,9.92721211,81.54,81.503,0.50000258]
[1770790102135,9.92721211,81.53,81.503,0.50000258]
[1770790103054,9.92721211,81.54,81.505,0.50000258]
[1770790103349,9.92721211,81.52,81.497,12.27033173]
[1770790103530,9.92721211,81.53,81.498,0.50000258]
[1770790103936,9.92721211,81.53,81.476,38.52]
[1770790103937,9.92721211,81.51,81.471,0.50000258]
[1770790104137,9.92721211,81.5,81.473,0.50000258]
[1770790105045,9.92721211,81.48,81.461,0.50000258]
[1770790105246,9.92721211,81.49,81.464,0.50000258]
[1770790105932,9.92721211,81.49,81.453,30.69238624]
[1770790105933,9.92721211,81.5,81.469,0.50000258]
[1770790106154,9.92721211,81.51,81.474,0.50000258]
[1770790106528,9.92721211,81.51,81.473,12.27398662]
[1770790106529,9.92721211,81.52,81.481,0.50000258]
[1770790106735,9.92721211,81.49,81.461,0.50000258]
[1770790106934,61.32561447,81.532,81.447,38.52]
[1770790106935,9.92721211,81.48,81.454,0.50000258]
[1770790107145,9.92721211,81.49,81.454,0.50000258]
[1770790109137,9.92721211,81.49,81.456,0.50000258]
[1770790109359,9.92721211,81.49,81.461,0.50000258]
[1770790109851,12.27159493,81.489,81.461,0.50000258]
[1770790110455,9.92721211,81.49,81.461,0.50000258]
[1770790110646,9.92721211,81.48,81.461,0.50000258]
[1770790111045,9.92721211,81.48,81.44,9.92721211]
[1770790111046,9.92721211,81.47,81.431,12.78033807]
[1770790111259,9.92721211,81.47,81.432,0.50000258]
[1770790111470,9.92721211,81.46,81.432,0.50000258]
[1770790111945,22.20174444,81.47,81.432,0.50000258]
[1770790112636,22.20174444,81.47,81.421,30.70445317]
[1770790112637,12.27114317,81.492,81.414,11.12475929]
[1770790112856,9.92721211,81.45,81.415,0.50000258]
[1770790113257,32.84,81.495,81.414,5.99443427]
[1770790113258,9.92721211,81.47,81.431,0.50000258]
[1770790113559,9.92721211,81.47,81.43,9.92721211]
[1770790113560,9.92721211,81.49,81.451,0.50000258]
[1770790113938,12.26993865,81.5,81.451,0.50000258]
[1770790113939,9.92721211,81.48,81.451,0.50000258]
[1770790114359,9.92721211,81.47,81.451,0.50000258]
[1770790114583,9.92721211,81.46,81.433,0.50000258]
[1770790114873,141.10429447,81.5,81.416,30.70649503]
[1770790114874,9.92721211,81.44,81.424,0.50000258]
[1770790115039,9.92721211,81.45,81.424,0.50000258]
[1770790115869,9.92721211,81.44,81.426,0.50000258]
[1770790116157,9.42720953,81.45,81.427,0.46735722]
[1770790116759,9.92721211,81.45,81.427,0.46735722]
[1770790117476,9.92721211,81.44,81.415,0.46735722]
[1770790117942,12.27785859,81.448,81.421,0.46735722]
[1770790118142,9.92721211,81.44,81.417,0.46735722]
[1770790118337,9.92721211,81.45,81.417,0.46735722]
[1770790118843,9.94025445,81.45,81.417,0.46735722]
[1770790119270,9.94025445,81.44,81.417,0.46735722]
[1770790119650,9.94025445,81.45,81.417,0.46735722]
[1770790120354,9.94025445,81.45,81.419,0.46735722]
[1770790120549,22.21624306,81.46,81.419,0.46735722]
[1770790120756,9.94025445,81.45,81.419,0.46735722]
[1770790120952,0.45489607,81.473,81.421,0.46735722]
[1770790121264,9.94025445,81.46,81.423,0.46735722]
[1770790121461,0.45489607,81.459,81.423,0.46735722]
[1770790121777,9.94025445,81.44,81.423,0.46735722]
[1770790122073,0.45489607,81.459,81.423,0.46735722]
[1770790122254,9.94025445,81.45,81.424,12.28139123]
[1770790122454,9.94025445,81.46,81.425,0.46735722]
[1770790124078,12.27490885,81.467,81.425,0.46735722]
[1770790124262,9.94025445,81.47,81.427,0.46735722]
[1770790124774,9.94025445,81.45,81.427,0.46735722]
[1770790125869,9.94025445,81.45,81.425,12.28115376]
[1770790126370,9.94025445,81.44,81.42,12.28199238]
[1770790126549,22.2178568,81.45,81.42,12.7493496]
[1770790126749,10.39515052,81.45,81.423,12.28154207]
[1770790126946,10.39515052,81.45,81.424,0.46735722]
[1770790126947,9.94025445,81.45,81.424,0.46735722]
[1770790127567,0.45489607,81.457,81.424,0.46735722]
[1770790128165,9.94025445,81.45,81.424,0.46735722]
[1770790128364,9.94025445,81.45,81.425,12.2812404]
[1770790128669,0.45489607,81.458,81.426,0.46735722]
[1770790128973,9.94025445,81.45,81.426,0.46735722]
[1770790129173,9.94025445,81.45,81.41,9.94025445]
[1770790129174,0.45489607,81.449,81.42,12.28193711]
[1770790129373,0.45489607,81.449,81.424,12.74871175]
[1770790129575,9.94025445,81.46,81.425,0.46735722]
[1770790130474,0.4750423,81.449,81.426,12.28108957]
[1770790130666,0.4750423,81.449,81.42,12.75433124]
[1770790130975,9.94025445,81.44,81.42,12.75433124]
[1770790131877,0.4750423,81.449,81.42,12.75433124]
[1770790132274,0.4750423,81.429,81.404,0.47238988]
[1770790132458,0.4750423,81.429,81.406,12.28410412]
[1770790132861,0.4750423,81.429,81.4,12.28487818]
[1770790132862,9.94025445,81.42,81.4,12.28487818]
[1770790133169,9.94025445,81.42,81.388,12.2867414]
[1770790133356,0.4750423,81.422,81.389,0.50000123]
[1770790133357,9.94025445,81.41,81.389,0.50000123]
[1770790134252,9.94025445,81.41,81.382,0.50000123]
[1770790134465,9.94025445,81.4,81.373,0.50000123]
[1770790134677,9.94025445,81.4,81.37,0.1]
[1770790134678,9.94025445,81.39,81.372,12.28914902]
[1770790135366,75.68275776,81.428,81.371,0.50000123]
[1770790135367,9.94025445,81.41,81.371,0.50000123]
[1770790135573,9.94025445,81.4,81.379,0.50000123]
[1770790135766,9.94025445,81.4,81.37,10.04025445]
[1770790135767,9.94025445,81.39,81.37,0.60000123]
[1770790135971,9.94025445,81.39,81.372,12.28921978]
[1770790136162,9.94025445,81.4,81.372,12.28921978]
[1770790136371,9.94025445,81.39,81.372,0.50000123]
[1770790137282,12.2851632,81.399,81.372,0.50000123]
[1770790137577,9.94025445,81.41,81.372,0.50000123]
[1770790137784,9.94025445,81.39,81.372,0.50000123]
[1770790139273,9.94025445,81.4,81.373,12.28908851]
[1770790139468,9.94025445,81.4,81.36,10.04025445]
[1770790139469,40.64524093,81.42,81.36,0.50000124]
[1770790139668,9.94025445,81.41,81.381,0.50000123]
[1770790139883,32.74,81.43,81.401,0.50000123]
[1770790139884,9.94025445,81.43,81.401,0.50000123]
[1770790140088,9.94025445,81.46,81.421,0.50000123]
[1770790140275,9.94025445,81.46,81.423,0.50000123]
[1770790140476,9.94025445,81.47,81.431,0.50000123]
[1770790140670,98.15730204,81.502,81.422,42.98592517]
[1770790140671,49.0588738,81.535,81.441,0.50000123]
[1770790140878,75.67319594,81.522,81.441,0.50000123]
[1770790141078,9.94025445,81.48,81.441,0.50000123]
[1770790141297,9.94025445,81.45,81.423,0.50000123]
[1770790141485,9.94025445,81.43,81.41,0.50000123]
[1770790141674,9.94025445,81.48,81.399,0.50000123]
[1770790141675,9.94025445,81.42,81.399,0.50000123]
[1770790141990,9.94025445,81.44,81.401,0.50000123]
[1770790142191,9.94025445,81.44,81.405,0.50000123]
[1770790142386,9.94025445,81.42,81.387,0.50000123]
[1770790142597,9.94025445,81.4,81.387,0.50000123]
[1770790143087,9.94025445,81.4,81.381,12.28785575]
[1770790143496,9.94025445,81.4,81.381,12.78785698]
[1770790143694,9.94025445,81.41,81.389,0.50000123]
[1770790144200,42.97652204,81.44,81.39,12.28652168]
[1770790144201,9.94025445,81.42,81.39,12.28652168]
[1770790144410,12.28069438,81.429,81.391,0.50000123]
[1770790144706,9.94025445,81.42,81.39,12.28652168]
[1770790145011,0.4750423,81.419,81.369,0.47238988]
[1770790145187,9.94025445,81.4,81.378,0.47238988]
[1770790145802,0.4750423,81.428,81.382,0.47238988]
[1770790146009,49.09773032,81.471,81.391,0.47238988]
[1770790146010,0.4750423,81.439,81.391,0.47238988]
[1770790146188,9.94025445,81.44,81.403,0.47238988]
[1770790146890,9.94025445,81.43,81.403,0.47238988]
[1770790147092,9.94025445,81.42,81.396,51.22560803]
[1770790147292,49.10135733,81.465,81.38,9.94025445]
[1770790147293,9.94025445,81.45,81.411,0.47238988]
[1770790147487,9.94025445,81.44,81.411,0.47238988]
[1770790148097,9.94025445,81.44,81.402,38.96]
[1770790148098,10.41529675,81.43,81.403,0.47238988]
[1770790148315,10.41529675,81.43,81.396,0.47238988]
[1770790148316,0.4750423,81.429,81.396,0.47238988]
[1770790148499,9.94025445,81.43,81.401,0.47238988]
[1770790148696,9.94025445,81.44,81.401,0.47238988]
[1770790149322,9.94025445,81.41,81.36,1e-08]
[1770790149503,9.94025445,81.4,81.374,0.50000101]
[1770790149687,9.94025445,81.4,81.375,0.50000101]
[1770790149890,9.94025445,81.41,81.381,12.28778298]
[1770790150094,9.94025445,81.4,81.371,0.50000101]
[1770790150294,9.94025445,81.39,81.371,0.50000101]
[1770790150707,9.94025445,81.39,81.362,0.50000101]
[1770790150891,9.94025445,81.39,81.366,0.50000101]
[1770790151096,30.70640077,81.417,81.37,0.50000101]
[1770790151293,9.94025445,81.4,81.37,0.50000101]
[1770790151494,9.94025445,81.38,81.363,0.50000101]
[1770790151709,9.94025445,81.4,81.363,0.50000101]
[1770790151907,9.94025445,81.4,81.36,9.94025446]
[1770790151908,9.94025445,81.4,81.372,0.50000101]
[1770790152116,42.98909304,81.416,81.373,0.50000101]
[1770790152313,9.94025445,81.4,81.375,0.50000101]
[1770790154314,9.94025445,81.4,81.376,12.28863546]
[1770790154626,12.2851632,81.399,81.36,1e-08]
[1770790154806,32.8,81.438,81.371,12.28937822]
[1770790154807,9.94025445,81.4,81.371,12.28937822]
[1770790155117,9.94025445,81.4,81.377,0.50000101]
[1770790155823,9.94025445,81.39,81.368,0.50000101]
[1770790156011,9.94025445,81.4,81.376,12.28863546]
[1770790156634,9.94025445,81.39,81.37,0.50000101]
[1770790157128,9.94025445,81.4,81.37,0.50000101]
[1770790157699,9.94025445,81.41,81.371,0.50000101]
[1770790158114,42.97589665,81.441,81.369,0.50000101]
[1770790158115,9.94025445,81.42,81.369,0.50000101]
[1770790158319,9.94025445,81.4,81.369,0.50000101]
[1770790158713,9.94025445,81.41,81.371,0.50000101]
[1770790161224,12.2824864,81.417,81.366,39.14]
[1770790161225,12.28068088,81.429,81.381,0.50000101]
[1770790161431,9.94025445,81.42,81.381,0.50000101]
[1770790161605,32.76,81.461,81.372,82.15233839]
[1770790161606,9.94025445,81.43,81.391,0.50000101]
[1770790162737,12.27656648,81.456,81.411,0.50000101]
[1770790162909,9.94025445,81.45,81.411,0.50000101]
[1770790163104,9.94025445,81.45,81.41,9.94025445]
[1770790163105,9.94025445,81.45,81.413,0.50000101]
[1770790163615,9.94025445,81.47,81.431,0.50000101]
[1770790163817,9.94025445,81.48,81.441,0.50000101]
[1770790164020,9.94025445,81.49,81.451,0.50000101]
[1770790164706,9.94025445,81.48,81.451,0.50000101]
[1770790165117,9.94025445,81.48,81.453,0.50000101]
[1770790165620,9.94025445,81.48,81.452,12.27716937]
[1770790165824,9.94025445,81.47,81.448,39.1]
[1770790166340,12.2675303,81.516,81.461,0.50000101]
[1770790166521,9.94025445,81.51,81.471,0.50000101]
[1770790167431,9.94025445,81.48,81.455,0.50000101]
[1770790167621,9.94025445,81.48,81.454,12.27678178]
[1770790167817,9.94025445,81.48,81.458,12.27614425]
[1770790168218,42.94004342,81.509,81.462,12.27556825]
[1770790168428,9.94025445,81.49,81.462,12.27556825]
[1770790168619,9.94025445,81.49,81.462,12.77556926]
[1770790168814,42.94004342,81.509,81.438,39.12]
[1770790168815,42.94004342,81.509,81.463,12.27543044]
[1770790169027,42.94004342,81.509,81.467,12.274784]
[1770790169028,9.94025445,81.49,81.467,12.274784]
[1770790169225,9.94025445,81.48,81.453,12.27687325]
[1770790169422,9.94025445,81.48,81.453,12.77687426]
[1770790169629,9.94025445,81.49,81.46,9.94025445]
[1770790169935,9.94025445,81.49,81.461,0.50000101]
[1770790170137,9.94025445,81.48,81.453,12.27687325]
[1770790170336,9.94025445,81.48,81.453,12.77687426]
[1770790170518,12.26798179,81.513,81.461,0.50000101]
[1770790170718,12.26798179,81.513,81.446,39.12]
[1770790170719,9.94025445,81.48,81.446,39.12]
[1770790170919,42.93793627,81.513,81.454,0.50000101]
[1770790171119,9.94025445,81.48,81.454,0.50000101]
[1770790172042,9.94025445,81.5,81.461,0.50000101]
[1770790173123,9.94025445,81.5,81.471,0.50000101]
[1770790173946,9.94025445,81.49,81.471,0.50000101]
[1770790174146,9.94025445,81.5,81.471,0.50000101]
[1770790175053,9.94025445,81.49,81.461,0.50000101]
[1770790175220,9.94025445,81.49,81.465,0.50000101]
[1770790175426,9.94025445,81.5,81.465,0.50000101]
[1770790175622,30.66983953,81.514,81.465,0.50000101]
[1770790175827,9.94025445,81.5,81.464,0.50000101]
[1770790176420,12.2700892,81.499,81.469,12.27454453]
[1770790176820,22.21028124,81.5,81.47,0.50000101]
[1770790178122,9.94025445,81.5,81.47,9.94025445]
[1770790178328,9.94025445,81.5,81.471,0.50000101]
[1770790178545,9.94025445,81.5,81.473,0.50000101]
[1770790178935,9.94025445,81.49,81.464,0.50000101]
[1770790179249,30.66957823,81.514,81.383,0.50000101]
[1770790179250,9.94025445,81.47,81.383,0.50000101]
[1770790179551,9.94025445,81.42,81.392,0.50000101]
[1770790179728,9.94025445,81.41,81.385,12.28718538]
[1770790179928,9.94025445,81.41,81.384,0.50000101]
[1770790180129,9.94025445,81.43,81.392,0.50000101]
[1770790180750,9.94025445,81.43,81.366,49.16002679]
[1770790180751,9.94025445,81.44,81.401,0.50000101]
[1770790180954,9.94482771,81.43,81.401,0.50000101]
[1770790183156,9.94482771,81.43,81.403,0.50000101]
[1770790184539,9.94482771,81.42,81.403,0.50000101]
[1770790184848,9.94482771,81.43,81.404,12.78440963]
[1770790185153,9.94482771,81.43,81.405,0.50000101]
[1770790185355,42.96429053,81.463,81.383,0.50000101]
[1770790185356,9.94482771,81.42,81.383,0.50000101]
[1770790185648,141.16838317,81.463,81.372,0.50000101]
[1770790185649,9.94482771,81.4,81.372,0.50000101]
[1770790185851,32.52,81.451,81.36,1e-08]
[1770790185852,9.94482771,81.38,81.36,1e-08]
[1770790186150,9.94482771,81.4,81.361,0.50000101]
[1770790186329,9.94482771,81.39,81.361,0.50000101]
[1770790186533,9.94482771,81.4,81.363,0.50000101]
[1770790186932,12.28321472,81.412,81.363,0.50000101]
[1770790187245,9.94482771,81.4,81.363,0.50000101]
[1770790187637,9.94482771,81.41,81.371,0.50000101]
[1770790188761,9.94482771,81.41,81.372,12.28923954]
[1770790188945,9.94482771,81.41,81.373,0.50000101]
[1770790189252,9.94482771,81.4,81.373,0.50000101]
[1770790190834,9.94482771,81.38,81.36,1e-08]
[1770790191056,9.94482771,81.36,81.344,0.2520697]
[1770790191442,9.94482771,81.35,81.344,0.2520697]
[1770790191649,9.94482771,81.37,81.344,0.2520697]
[1770790191954,9.94482771,81.35,81.344,0.2520697]
[1770790192156,32.46,81.397,81.344,0.2520697]
[1770790192336,9.96539212,81.35,81.344,0.2520697]
[1770790193960,12.29066598,81.363,81.344,0.2520697]
[1770790194458,9.96539212,81.36,81.344,0.2520697]
[1770790196159,43.0014462,81.393,81.346,0.50000101]
[1770790196364,9.96539212,81.38,81.346,0.50000101]
[1770790197259,9.96539212,81.37,81.347,12.79301734]
[1770790197959,9.96539212,81.37,81.344,0.2520697]
[1770790198142,9.96539212,81.38,81.345,0.50000101]
[1770790198344,9.96539212,81.37,81.348,0.50000101]
[1770790198843,43.0017692,81.392,81.348,0.50000101]
[1770790198844,9.96539212,81.38,81.348,0.50000101]
[1770790199041,43.0017692,81.392,81.344,0.2520697]
[1770790199042,9.96539212,81.37,81.344,0.2520697]
[1770790199247,9.96539212,81.36,81.344,0.2520697]
[1770790199458,12.29046189,81.364,81.344,0.2520697]
[1770790199660,9.96539212,81.36,81.344,0.2520697]
[1770790199853,9.96539212,81.35,81.344,0.2520697]
[1770790200089,9.96539212,81.35,81.315,12.79777766]
[1770790200370,43.01658154,81.364,81.31,0.60000101]
[1770790200371,9.96539212,81.34,81.31,0.60000101]
[1770790200548,9.96539212,81.34,81.314,0.50000101]
[1770790200744,9.96539212,81.33,81.31,0.1]
[1770790201267,12.2942254,81.339,81.31,0.1]
[1770790201469,9.96539212,81.33,81.31,0.1]
[1770790202341,12.2942254,81.339,81.282,0.50000101]
[1770790202545,12.2942254,81.339,81.299,0.50000101]
[1770790202546,9.96539212,81.32,81.299,0.50000101]
[1770790202761,9.96539212,81.33,81.299,0.50000101]
[1770790202965,12.2942254,81.339,81.302,12.29976733]
[1770790203143,12.2942254,81.339,81.299,0.50000101]
[1770790203467,9.96539212,81.33,81.301,0.50000101]
[1770790203767,9.96539212,81.35,81.311,0.50000101]
[1770790204064,9.96539212,81.34,81.311,0.50000101]
[1770790204762,9.96539212,81.33,81.301,12.29984065]
[1770790204943,9.96539212,81.33,81.299,0.50000101]
[1770790205143,9.96539212,81.33,81.302,12.29982042]
[1770790205376,9.96539212,81.32,81.302,12.29982042]
[1770790205550,9.96539212,81.32,81.299,0.50000101]
[1770790205874,12.29501835,81.334,81.276,39.14]
[1770790205875,9.96539212,81.31,81.276,39.14]
[1770790206178,9.96539212,81.31,81.271,0.50000101]
[1770790206350,9.96539212,81.3,81.271,0.50000101]
[1770790206548,32.44,81.33,81.261,0.50000101]
[1770790206549,9.96539212,81.29,81.261,0.50000101]
[1770790207676,9.96539212,81.3,81.263,0.50000101]
[1770790209070,30.76802445,81.495,81.262,12.30587482]
[1770790209071,32.4,81.338,81.281,0.50000101]
[1770790209272,9.96539212,81.32,81.281,0.50000101]
[1770790209445,12.2945277,81.337,81.27,12.30456872]
[1770790209446,9.96539212,81.31,81.27,12.30456872]
[1770790209648,9.96539212,81.3,81.27,22.26996084]
[1770790209857,9.96539212,81.3,81.269,0.50000101]
[1770790210059,9.96539212,81.3,81.261,0.50000101]
[1770790210259,9.96539212,81.31,81.27,9.96539212]
[1770790210547,9.96539212,81.31,81.275,12.30377981]
[1770790210758,12.29573706,81.329,81.29,9.96539212]
[1770790210953,49.15901852,81.369,81.301,0.50000101]
[1770790210954,32.4,81.348,81.301,0.50000101]
[1770790211153,49.15323604,81.379,81.301,0.50000101]
[1770790211154,9.96539212,81.34,81.301,0.50000101]
[1770790211455,12.29105211,81.36,81.32,9.96539212]
[1770790211662,9.96539212,81.35,81.32,9.96539212]
[1770790211854,9.96539212,81.35,81.317,12.29749797]
[1770790212057,9.96539212,81.35,81.317,0.50000101]
[1770790212262,9.96539212,81.35,81.32,9.96539212]
[1770790212462,9.96539212,81.35,81.322,12.29679545]
[1770790212662,22.25644423,81.36,81.322,12.79679646]
[1770790212864,9.96539212,81.35,81.322,0.50000101]
[1770790213367,9.96539212,81.34,81.313,0.50000101]
[1770790213674,12.29317525,81.346,81.314,12.29800526]
[1770790214674,9.96539212,81.35,81.32,9.96539212]
[1770790214861,12.2927141,81.349,81.32,9.96539212]
[1770790215057,12.2927141,81.349,81.315,0.50000101]
[1770790215375,9.96539212,81.34,81.31,9.96539212]
[1770790215754,12.29392545,81.341,81.31,9.96539212]
[1770790215955,9.96539212,81.34,81.303,39.12]
[1770790216154,9.96539212,81.33,81.296,0.50000101]
[1770790216357,43.02873323,81.341,81.296,0.50000101]
[1770790216563,9.96539212,81.33,81.296,0.50000101]
[1770790216857,9.96539212,81.34,81.3,9.96539212]
[1770790217060,9.96539212,81.34,81.301,0.50000101]
[1770790217458,12.29573706,81.329,81.301,0.50000101]
[1770790218378,12.29573706,81.329,81.295,12.30083891]
[1770790218572,12.29573706,81.329,81.296,0.50000101]
[1770790218758,12.2947516,81.336,81.301,0.50000101]
[1770790218958,9.96539212,81.34,81.303,0.50000101]
[1770790219162,12.2942254,81.339,81.31,9.96539212]
[1770790219356,32.38,81.357,81.311,0.50000101]
[1770790219562,12.2927141,81.349,81.32,9.96539212]
[1770790219761,12.2927141,81.349,81.312,12.29830775]
[1770790219978,12.2927141,81.349,81.313,0.50000101]
[1770790220862,43.02449937,81.349,81.313,0.50000101]
[1770790221563,12.2927141,81.349,81.314,12.79800627]
[1770790222060,9.96539212,81.34,81.311,0.50000101]
[1770790222473,12.2927141,81.349,81.313,12.29809601]
[1770790222683,12.2927141,81.349,81.314,0.50000101]
[1770790222882,12.29120318,81.359,81.32,9.96539212]
[1770790223460,9.96539212,81.35,81.314,0.50000101]
[1770790223662,12.2927141,81.349,81.316,0.50000101]
[1770790224374,9.96539212,81.35,81.316,0.50000101]
[1770790224576,12.29133161,81.359,81.321,0.50000101]
[1770790224762,9.96539212,81.35,81.321,0.50000101]
[1770790224959,9.96539212,81.34,81.309,39.08]
[1770790225475,9.96539212,81.34,81.3,9.96539212]
[1770790225673,9.96539212,81.33,81.297,0.50000101]
[1770790225864,12.2942254,81.339,81.3,22.26541004]
[1770790226066,43.0297889,81.339,81.3,9.96539212]
[1770790226564,43.0297889,81.339,81.3,10.46539313]
[1770790226768,43.0297889,81.339,81.301,0.50000101]
[1770790227082,43.0297889,81.339,81.286,30.75539816]
[1770790227083,9.96539212,81.33,81.291,0.50000101]
[1770790227260,9.96539212,81.33,81.295,0.50000101]
[1770790227657,12.29573706,81.329,81.295,0.50000101]
[1770790228180,9.96539212,81.32,81.29,9.96539212]
[1770790228476,9.96539212,81.32,81.285,0.50000101]
[1770790228783,9.96539212,81.32,81.287,12.30202346]
[1770790229371,9.96539212,81.32,81.292,12.30129945]
[1770790229679,9.96539212,81.34,81.303,0.50000101]
[1770790229984,22.25947033,81.34,81.303,0.50000101]
[1770790230460,12.29407821,81.34,81.31,9.96539212]
[1770790230660,12.29407821,81.34,81.311,0.50000101]
[1770790231262,12.29407821,81.34,81.302,12.29982042]
[1770790231263,9.96539212,81.36,81.321,0.50000101]
[1770790231485,9.96539212,81.35,81.311,0.50000101]
[1770790232074,9.96539212,81.34,81.302,0.50000101]
[1770790232378,9.96539212,81.34,81.303,0.50000101]
[1770790232580,9.96539212,81.33,81.303,0.50000101]
[1770790232781,9.96539212,81.31,81.282,0.50000101]
[1770790232983,9.96539212,81.31,81.284,0.50000101]
[1770790233185,9.96539212,81.32,81.284,0.50000101]
[1770790233680,9.96539212,81.31,81.284,0.50000101]
[1770790234088,9.96539212,81.31,81.267,30.76249004]
[1770790234089,9.96539212,81.29,81.221,167.8]
[1770790234266,9.96539212,81.27,81.244,12.80849292]
[1770790234465,42.26539212,81.3,81.244,12.80849292]
[1770790234466,9.96539212,81.28,81.245,0.50000101]
[1770790234665,9.96539212,81.28,81.25,9.96539212]
[1770790234872,9.96539212,81.28,81.25,0.50000101]
[1770790235073,9.96539212,81.28,81.251,0.50000101]
[1770790235583,9.96539212,81.28,81.244,12.30849191]
[1770790235890,9.96539212,81.27,81.232,0.50000101]
[1770790236088,12.30481487,81.269,81.234,0.50000101]
[1770790236383,9.96539212,81.26,81.222,0.50000101]
[1770790236689,12.30481487,81.269,81.234,0.50000101]
[1770790237272,9.96539212,81.24,81.22,0.72]
[1770790237489,9.96539212,81.25,81.215,0.50000101]
[1770790237700,32.28,81.268,81.223,0.50000101]
[1770790237701,9.96539212,81.26,81.223,0.50000101]
[1770790237868,9.96539212,81.26,81.181,49.27218758]
[1770790237869,32.28,81.268,81.205,12.31445223]
[1770790238187,9.96539212,81.24,81.203,12.31479329]
[1770790238380,9.96539212,81.24,81.211,0.50000101]
[1770790239198,12.30890426,81.242,81.189,0.50000101]
[1770790239492,9.96539212,81.22,81.189,0.50000101]
[1770790239694,9.96539212,81.22,81.191,0.50000101]